[Event "IND-ch Women 2019"]
[Site "Karaikkudi"]
[Date "2019.07.24"]
[Round "8.19"]
[White "Divyabharathi Masanam"]
[Black "Meenal Gupta"]
[Result "0-1"]
[ECO "B92"]
[WhiteElo "1730"]
[BlackElo "2004"]
[Annotator "NA RC"]
[PlyCount "120"]
[EventDate "2019.07.19"]
[EventType "swiss"]
[EventCountry "IND"]
[SourceTitle "playchess.com"]
[Source "ChessBase"]
[SourceQuality "1"]
[TimeControl "40/5400+30:1800+30"]

1. e4 {[%emt 0:00:18]} c5 {[%emt 0:00:00]} 2. Nf3 {[%emt 0:00:36]} d6 {[%emt 0:00:00]} 3. d4 {[%emt 0:00:18]} cxd4 {[%emt 0:00:03]} 4. Nxd4 {[%emt 0:00:03]} Nf6 {[%emt 0:00:06]} 5. Nc3 {[%emt 0:00:03]} a6 {[%emt 0:00:06]} 6. Be3 {[%emt 0:00:47]} e5 {[%emt 0:00:07]} 7. Nb3 {[%emt 0:00:04]} Be7 {[%emt 0:00:09]} 8. Be2 {[%emt 0:03:16]} Be6 {[%emt 0:02:14]} 9. O-O {[%emt 0:03:28]} O-O {[%emt 0:00:39]} 10. Qd2 {[%emt 0:07:42]} Nbd7 {[%emt 0:05:10]} 11. f4 {[%emt 0:08:06]} exf4 {[%emt 0:01:19]} 12. Bxf4 {[%emt 0:00:06]} Ne5 {[%emt 0:01:39]} 13. Qd4 {[%emt 0:00:30]} Qc7 {[%emt 0:00:30]} 14. Rac1 {[%emt 0:00:30]} Rfe8 {[%emt 0:00:30]} 15. Nd5 {[%emt 0:00:30]} Bxd5 {[%emt 0:00:30]} 16. exd5 {[%emt 0:00:30]} Nfd7 {[%emt 0:00:30]} 17. Qf2 {[%emt 0:00:30]} Bf6 {[%emt 0:00:30]} 18. c3 {[%emt 0:00:30]} Rac8 {[%emt 0:00:30]} 19. Rcd1 {[%emt 0:00:30]} Re7 {[%emt 0:00:30]} 20. Nd4 {[%emt 0:00:30]} g6 {[%emt 0:00:30]} 21. Bxe5 {[%emt 0:00:30]} Bxe5 {[%emt 0:00:30]} 22. Bg4 {[%emt 0:00:30]} Rce8 {[%emt 0:00:30]} 23. Bxd7 {[%emt 0:00:30]} Qxd7 {[%emt 0:00:30]} 24. h3 {[%emt 0:00:30]} Bg7 {[%emt 0:00:30]} 25. Kh1 {[%emt 0:00:30]} Re4 {[%emt 0:00:30]} 26. Nf3 {[%emt 0:00:30]} h6 {[%emt 0:00:30]} 27. Rfe1 {[%emt 0:00:30]} Qf5 {[%emt 0:00:30]} 28. Rxe4 {[%emt 0:00:30]} Rxe4 {[%emt 0:00:30]} 29. Qb6 {[%emt 0:00:30]} Rf4 {[%emt 0:00:30]} 30. Qe3 {[%emt 0:00:30]} g5 {[%emt 0:00:30]} 31. Qd3 {[%emt 0:00:30]} Qxd3 {[%emt 0:00:30]} 32. Rxd3 {[%emt 0:00:30]} Ra4 {[%emt 0:00:30]} 33. a3 {[%emt 0:00:30]} f5 {[%emt 0:00:30]} 34. Re3 {[%emt 0:00:30]} Kf7 {[%emt 0:00:30]} 35. Re6 {[%emt 0:00:30]} g4 {[%emt 0:00:30]} 36. Nh4 {[%emt 0:00:30]} Rf4 {[%emt 0:00:30]} 37. g3 {[%emt 0:00:30]} Rf2 {[%emt 0:00:30]} 38. Nxf5 {[%emt 0:00:30]} Rxf5 {[%emt 0:00:30]} 39. Rxd6 {[%emt 0:00:30]} gxh3 {[%emt 0:00:30]} 40. Rd7+ {[%emt 0:00:30]} Kg6 {[%emt 0:00:30]} 41. Rxb7 {[%emt 0:30:30]} Rxd5 {[%emt 0:30:30]} 42. Kh2 {[%emt 0:00:30]} a5 {[%emt 0:00:30]} 43. Kxh3 {[%emt 0:00:30]} Be5 {[%emt 0:00:30]} 44. Rb6+ {[%emt 0:00:30]} Kg5 {[%emt 0:00:30]} 45. Re6 {[%emt 0:00:30]} a4 {[%emt 0:00:30]} 46. Re8 {[%emt 0:00:30]} Kf5 {[%emt 0:00:30]} 47. Rf8+ {[%emt 0:00:30]} Ke4 {[%emt 0:00:30]} 48. Ra8 {[%emt 0:00:30]} Kf3 {[%emt 0:00:30]} 49. Rf8+ {[%emt 0:00:30]} Ke2 {[%emt 0:00:30]} 50. Ra8 {[%emt 0:00:30]} Rd3 {[%emt 0:00:30]} 51. Rxa4 {[%emt 0:00:30]} Rxg3+ {[%emt 0:00:30]} 52. Kh4 {[%emt 0:00:30]} Rg5 {[%emt 0:00:30]} 53. Rg4 {[%emt 0:00:30]} Kf3 {[%emt 0:00:30]} 54. Rxg5 {[%emt 0:00:30]} Bf6 {[%emt 0:00:30]} 55. Kh5 {[%emt 0:00:30]} hxg5 {[%emt 0:00:30]} 56. a4 {[%emt 0:00:30]} g4 {[%emt 0:00:30]} 57. a5 {[%emt 0:00:30]} Bd8 {[%emt 0:00:30]} 58. a6 {[%emt 0:00:30]} Bb6 {[%emt 0:00:30]} 59. c4 {[%emt 0:00:30]} g3 {[%emt 0:00:30]} 60. b4 {[%emt 0:00:30]} g2 {[%emt 0:00:30]} 0-1

[Event "IND-ch Women 2019"]
[Site "Karaikkudi"]
[Date "2019.07.24"]
[Round "8.20"]
[White "Chinnam Vyshnavi"]
[Black "Saranya, J."]
[Result "1/2-1/2"]
[ECO "E61"]
[WhiteElo "1664"]
[BlackElo "2067"]
[Annotator "NA RC"]
[PlyCount "92"]
[EventDate "2019.07.19"]
[EventType "swiss"]
[EventCountry "IND"]
[SourceTitle "playchess.com"]
[Source "ChessBase"]
[SourceQuality "1"]
[TimeControl "40/5400+30:1800+30"]

1. d4 {[%emt 0:00:00]} Nf6 {[%emt 0:00:00]} 2. Nf3 {[%emt 0:00:21]} b6 {[%emt 0:00:02]} 3. Bf4 {[%emt 0:00:34]} g6 {[%emt 0:00:38]} 4. e3 {[%emt 0:00:14]} Bg7 {[%emt 0:00:06]} 5. Be2 {[%emt 0:00:26]} O-O {[%emt 0:00:22]} 6. h3 {[%emt 0:00:43]} d6 {[%emt 0:01:27]} 7. O-O {[%emt 0:00:34]} Nbd7 {[%emt 0:02:00]} 8. c4 {[%emt 0:01:19]} Bb7 {[%emt 0:01:11]} 9. Nc3 {[%emt 0:01:22]} Re8 {[%emt 0:01:57]} 10. Qc2 {[%emt 0:04:57]} e5 {[%emt 0:06:07]} 11. dxe5 {[%emt 0:00:13]} dxe5 {[%emt 0:00:02]} 12. Bh2 {[%emt 0:01:32]} Qe7 {[%emt 0:06:10]} 13. Rfd1 {[%emt 0:08:20]} c6 {[%emt 0:06:18]} 14. Rd2 {[%emt 0:04:48]} h6 {[%emt 0:11:29]} 15. Rad1 {[%emt 0:02:40]} e4 {[%emt 0:09:13]} 16. Nd4 {[%emt 0:03:44]} Nc5 {[%emt 0:06:41]} 17. b4 {[%emt 0:13:30]} Nd3 {[%emt 0:06:18]} 18. b5 {[%emt 0:13:46]} c5 {[%emt 0:04:52]} 19. Nb3 {[%emt 0:01:25]} Nb4 {[%emt 0:10:05]} 20. Qb2 {[%emt 0:04:58]} Rad8 {[%emt 0:03:10]} 21. Nc1 {[%emt 0:04:37]} a6 {[%emt 0:12:02]} 22. a3 {[%emt 0:02:01]} Nd3 {[%emt 0:01:36]} 23. Nxd3 {[%emt 0:01:22]} exd3 {[%emt 0:03:35]} 24. Bxd3 {[%emt 0:00:37]} axb5 {[%emt 0:01:15]} 25. Qxb5 {[%emt 0:01:36]} Ng4 {[%emt 0:02:58]} 26. Nd5 {[%emt 0:06:27]} Bxd5 {[%emt 0:00:37]} 27. cxd5 {[%emt 0:00:06]} Nxh2 {[%emt 0:00:09]} 28. Kxh2 {[%emt 0:00:04]} Rxd5 {[%emt 0:00:38]} 29. Bc4 {[%emt 0:04:00]} Rxd2 {[%emt 0:01:31]} 30. Rxd2 {[%emt 0:00:04]} Rd8 {[%emt 0:00:32]} 31. Rxd8+ {[%emt 0:02:49]} Qxd8 {[%emt 0:00:01]} 32. Qc6 {[%emt 0:00:14]} Qf6 {[%emt 0:00:38]} 33. Qxf6 {[%emt 0:01:25]} Bxf6 {[%emt 0:00:02]} 34. Kg3 {[%emt 0:00:32]} Bb2 {[%emt 0:00:51]} 35. a4 {[%emt 0:00:14]} Kg7 {[%emt 0:00:41]} 36. Kf4 {[%emt 0:00:51]} f5 {[%emt 0:00:18]} 37. Kf3 {[%emt 0:05:28]} Kf6 {[%emt 0:00:07]} 38. Ke2 {[%emt 0:00:36]} g5 {[%emt 0:00:15]} 39. Kd3 {[%emt 0:00:50]} Ke5 {[%emt 0:00:41]} 40. Bg8 {[%emt 0:00:00]} Ba3 {[%emt 0:00:00]} 41. g4 {[%emt 0:05:32]} f4 {[%emt 0:05:18]} 42. e4 {[%emt 0:03:24]} Bb4 {[%emt 0:00:05]} 43. f3 {[%emt 0:00:13]} Be1 {[%emt 0:01:00]} 44. Kc4 {[%emt 0:00:25]} Ba5 {[%emt 0:00:06]} 45. Bf7 {[%emt 0:00:15]} Kf6 {[%emt 0:00:56]} 46. Bg8 {[%emt 0:00:25]} Ke5 {[%emt 0:00:01]} 1/2-1/2

[Event "IND-ch Women 2019"]
[Site "Karaikkudi"]
[Date "2019.07.24"]
[Round "8.21"]
[White "Nandhini, Saripalli"]
[Black "Nisha, N. Patkar"]
[Result "1-0"]
[ECO "A48"]
[WhiteElo "1933"]
[BlackElo "1596"]
[Annotator "NA RC"]
[PlyCount "97"]
[EventDate "2019.07.19"]
[EventType "swiss"]
[EventCountry "IND"]
[SourceTitle "playchess.com"]
[Source "ChessBase"]
[SourceQuality "1"]
[TimeControl "40/5400+30:1800+30"]

1. d4 {[%emt 0:00:00]} Nf6 {[%emt 0:00:00]} 2. Nf3 {[%emt 0:00:08]} g6 {[%emt 0:03:01]} 3. Bg5 {[%emt 0:07:02]} Bg7 {[%emt 0:02:33]} 4. Nbd2 {[%emt 0:00:07]} d6 {[%emt 0:00:44]} 5. e4 {[%emt 0:00:43]} Nfd7 {[%emt 0:03:23]} 6. c3 {[%emt 0:03:02]} O-O {[%emt 0:01:13]} 7. Be2 {[%emt 0:07:26]} f6 {[%emt 0:08:39]} 8. Qb3+ {[%emt 0:05:32]} Kh8 {[%emt 0:00:28]} 9. Bh4 {[%emt 0:08:13]} e5 {[%emt 0:01:04]} 10. O-O-O {[%emt 0:10:16]} a5 {[%emt 0:22:12]} 11. dxe5 {[%emt 0:09:12]} dxe5 {[%emt 0:05:48]} 12. Nc4 {[%emt 0:01:40]} Qe7 {[%emt 0:03:05]} 13. Ne3 {[%emt 0:04:11]} a4 {[%emt 0:09:10]} 14. Nd5 {[%emt 0:11:09]} axb3 {[%emt 0:10:31]} 15. Nxe7 {[%emt 0:00:10]} bxa2 {[%emt 0:00:45]} 16. Kc2 {[%emt 0:00:21]} Nc5 {[%emt 0:00:40]} 17. Nxc8 {[%emt 0:01:08]} Rxc8 {[%emt 0:00:04]} 18. Nd2 {[%emt 0:05:08]} Nc6 {[%emt 0:05:58]} 19. Bc4 {[%emt 0:08:06]} h5 {[%emt 0:12:33]} 20. f3 {[%emt 0:07:37]} Kh7 {[%emt 0:02:42]} 21. Ra1 {[%emt 0:01:13]} Rd8 {[%emt 0:01:12]} 22. Rxa2 {[%emt 0:00:57]} Rxa2 {[%emt 0:00:39]} 23. Bxa2 {[%emt 0:00:01]} Na4 {[%emt 0:00:26]} 24. Nc4 {[%emt 0:02:32]} g5 {[%emt 0:02:00]} 25. Bf2 {[%emt 0:00:34]} b5 {[%emt 0:00:25]} 26. Ne3 {[%emt 0:02:27]} Nb6 {[%emt 0:01:39]} 27. Nf5 {[%emt 0:00:56]} Bf8 {[%emt 0:01:06]} 28. h4 {[%emt 0:00:27]} Kg6 {[%emt 0:00:28]} 29. g4 {[%emt 0:00:37]} hxg4 {[%emt 0:00:47]} 30. h5+ {[%emt 0:00:17]} Kh7 {[%emt 0:00:08]} 31. fxg4 {[%emt 0:00:23]} b4 {[%emt 0:00:44]} 32. Ra1 {[%emt 0:01:51]} bxc3 {[%emt 0:00:28]} 33. bxc3 {[%emt 0:00:05]} Ne7 {[%emt 0:01:10]} 34. Ne3 {[%emt 0:01:34]} Nec8 {[%emt 0:00:21]} 35. Nd5 {[%emt 0:00:38]} Nxd5 {[%emt 0:00:22]} 36. Bxd5 {[%emt 0:00:05]} Bd6 {[%emt 0:00:37]} 37. Ra8 {[%emt 0:00:41]} Rh8 {[%emt 0:00:26]} 38. c4 {[%emt 0:01:53]} Be7 {[%emt 0:00:53]} 39. Be6 {[%emt 0:00:30]} Nd6 {[%emt 0:00:27]} 40. Ra7 {[%emt 0:00:00]} Bd8 {[%emt 0:00:00]} 41. Bc5 {[%emt 0:14:28]} Ne8 {[%emt 0:21:36]} 42. Bf5+ {[%emt 0:03:17]} Kh6 {[%emt 0:00:12]} 43. Ra8 {[%emt 0:11:19]} Nd6 {[%emt 0:04:02]} 44. Bxd6 {[%emt 0:02:09]} cxd6 {[%emt 0:03:20]} 45. Ra7 {[%emt 0:00:01]} Bb6 {[%emt 0:00:38]} 46. Rb7 {[%emt 0:00:35]} Ba5 {[%emt 0:01:47]} 47. Kb3 {[%emt 0:01:04]} Bd8 {[%emt 0:01:46]} 48. Ka4 {[%emt 0:01:23]} d5 {[%emt 0:00:44]} 49. exd5 {[%emt 0:00:26]} 1-0

[Event "IND-ch Women 2019"]
[Site "Karaikkudi"]
[Date "2019.07.25"]
[Round "9.1"]
[White "Kulkarni Bhakti"]
[Black "Meenakshi Subbaraman"]
[Result "1-0"]
[ECO "B06"]
[WhiteElo "2388"]
[BlackElo "2163"]
[Annotator "NA"]
[PlyCount "74"]
[EventDate "2019.07.19"]
[EventType "swiss"]
[EventCountry "IND"]
[SourceTitle "playchess.com"]
[Source "ChessBase"]
[SourceQuality "1"]
[TimeControl "40/5400+30:1800+30"]

1. e4 {[%emt 0:01:19]} d6 {[%emt 0:01:37]} 2. d4 {[%emt 0:00:58]} g6 {[%emt 0:00:15]} 3. Nc3 {[%emt 0:00:17]} Bg7 {[%emt 0:00:10]} 4. Be3 {[%emt 0:00:46]} Nd7 {[%emt 0:00:22]} 5. Nf3 {[%emt 0:04:33]} a6 {[%emt 0:03:36]} 6. Bd3 {[%emt 0:01:10]} e6 {[%emt 0:13:24]} 7. Qd2 {[%emt 0:02:39]} b5 {[%emt 0:00:56]} 8. a4 {[%emt 0:04:02]} b4 {[%emt 0:01:21]} 9. Ne2 {[%emt 0:00:04]} a5 {[%emt 0:01:38]} 10. c3 {[%emt 0:01:48]} bxc3 {[%emt 0:03:00]} 11. bxc3 {[%emt 0:07:22]} Ba6 {[%emt 0:00:10]} 12. O-O {[%emt 0:05:13]} Ngf6 {[%emt 0:05:37]} 13. c4 {[%emt 0:21:42]} O-O {[%emt 0:04:16]} 14. h3 {[%emt 0:00:50]} e5 {[%emt 0:15:23]} 15. d5 {[%emt 0:06:34]} Ne8 $16 {[%emt 0:09:54]} 16. Qxa5 {[%emt 0:04:32]} f5 {[%emt 0:09:01]} 17. Ng5 {[%emt 0:05:47]} Nc5 {[%emt 0:04:47]} 18. Bxc5 {[%emt 0:08:26]} Qxg5 {[%emt 0:00:17]} 19. Be3 {[%emt 0:01:45]} Qh4 {[%emt 0:12:13]} 20. f3 {[%emt 0:01:21]} Bxc4 {[%emt 0:00:41]} 21. Qc3 {[%emt 0:08:15]} Bxd3 {[%emt 0:00:45]} 22. Qxd3 {[%emt 0:02:26]} Nf6 {[%emt 0:02:50]} 23. Nc3 {[%emt 0:00:09]} Nh5 {[%emt 0:03:17]} 24. a5 {[%emt 0:00:38]} Nf4 {[%emt 0:00:29]} 25. Qd2 {[%emt 0:00:35]} Qg3 {[%emt 0:02:05]} 26. Bxf4 {[%emt 0:06:34]} exf4 {[%emt 0:00:09]} 27. exf5 {[%emt 0:00:23]} Rfe8 {[%emt 0:02:01]} 28. Ra2 {[%emt 0:01:08]} gxf5 {[%emt 0:02:37]} 29. a6 {[%emt 0:00:27]} Reb8 {[%emt 0:00:53]} 30. Ne2 {[%emt 0:01:14]} Qg5 {[%emt 0:00:09]} 31. Rc1 {[%emt 0:00:24]} Qe7 {[%emt 0:01:00]} 32. Qxf4 {[%emt 0:00:50]} Rb6 {[%emt 0:00:30]} 33. Qxf5 {[%emt 0:00:16]} Raxa6 {[%emt 0:00:15]} 34. Rxa6 {[%emt 0:00:08]} Qe3+ {[%emt 0:00:42]} 35. Kh1 {[%emt 0:00:11]} Rb8 {[%emt 0:00:33]} 36. Rxc7 {[%emt 0:00:27]} Rb1+ {[%emt 0:00:31]} 37. Qxb1 {[%emt 0:00:05]} Qg5 {[%emt 0:01:06]} 1-0

[Event "IND-ch Women 2019"]
[Site "Karaikkudi"]
[Date "2019.07.25"]
[Round "9.2"]
[White "Priyanka, Kumari"]
[Black "Vantika Agrawal"]
[Result "1-0"]
[ECO "B06"]
[WhiteElo "1991"]
[BlackElo "2243"]
[Annotator "NA"]
[PlyCount "139"]
[EventDate "2019.07.19"]
[EventType "swiss"]
[EventCountry "IND"]
[SourceTitle "playchess.com"]
[Source "ChessBase"]
[SourceQuality "1"]
[TimeControl "40/5400+30:1800+30"]

1. e4 {[%emt 0:00:02]} g6 {[%emt 0:00:00]} 2. d4 {[%emt 0:00:30]} Bg7 {[%emt 0:00:00]} 3. Nc3 {[%emt 0:00:39]} d6 {[%emt 0:00:00]} 4. Be3 {[%emt 0:02:10]} a6 {[%emt 0:00:05]} 5. a4 {[%emt 0:00:49]} Nf6 {[%emt 0:00:35]} 6. f3 {[%emt 0:03:33]} O-O {[%emt 0:00:39]} 7. Qd2 {[%emt 0:01:16]} Nc6 {[%emt 0:01:10]} 8. h4 {[%emt 0:03:43]} e5 {[%emt 0:10:09]} 9. d5 {[%emt 0:09:18]} Nd4 {[%emt 0:04:08]} 10. Nce2 {[%emt 0:10:20]} Nxe2 {[%emt 0:08:09]} 11. Nxe2 {[%emt 0:02:18]} c6 {[%emt 0:00:50]} 12. c4 {[%emt 0:02:36]} cxd5 {[%emt 0:06:59]} 13. cxd5 $14 {[%emt 0:01:08]} Bd7 {[%emt 0:09:02]} 14. a5 {[%emt 0:05:28]} Bb5 {[%emt 0:11:48]} 15. g4 {[%emt 0:13:35]} Bxe2 {[%emt 0:09:49]} 16. Bxe2 {[%emt 0:01:43]} Rc8 {[%emt 0:00:44]} 17. h5 {[%emt 0:04:33]} Nd7 {[%emt 0:02:53]} 18. Bh6 {[%emt 0:08:50]} Bxh6 {[%emt 0:02:57]} 19. Qxh6 {[%emt 0:00:08]} Qe7 {[%emt 0:03:55]} 20. hxg6 {[%emt 0:06:23]} fxg6 {[%emt 0:00:10]} 21. Kd2 {[%emt 0:01:08]} Rc7 {[%emt 0:04:33]} 22. Rac1 {[%emt 0:03:11]} Nc5 {[%emt 0:05:33]} 23. Qe3 {[%emt 0:00:29]} Rfc8 {[%emt 0:01:08]} 24. Rc4 {[%emt 0:04:11]} Ne6 {[%emt 0:09:14]} 25. Rxc7 {[%emt 0:01:34]} Qxc7 {[%emt 0:00:40]} 26. dxe6 {[%emt 0:06:22]} Qxa5+ {[%emt 0:00:17]} 27. Kd3 {[%emt 0:00:35]} Qb5+ {[%emt 0:02:08]} 28. Kd2 {[%emt 0:00:04]} Qa5+ {[%emt 0:00:07]} 29. Kd3 {[%emt 0:00:08]} d5 {[%emt 0:05:26]} 30. Bd1 {[%emt 0:06:45]} d4 {[%emt 0:00:25]} 31. Qh6 {[%emt 0:00:34]} Qb5+ {[%emt 0:01:10]} 32. Kd2 {[%emt 0:00:04]} Qxb2+ {[%emt 0:00:39]} 33. Ke1 {[%emt 0:00:20]} Rc7 {[%emt 0:00:28]} 34. Qg5 {[%emt 0:00:38]} Qb4+ {[%emt 0:00:36]} 35. Kf2 {[%emt 0:00:11]} Qe7 {[%emt 0:00:32]} 36. Qxe7 {[%emt 0:00:28]} Rxe7 {[%emt 0:00:10]} 37. Bb3 {[%emt 0:00:05]} Kg7 {[%emt 0:00:34]} 38. Rc1 {[%emt 0:01:15]} b5 {[%emt 0:00:40]} 39. Rc5 {[%emt 0:00:19]} Kf6 {[%emt 0:00:12]} 40. g5+ {[%emt 0:00:00]} Kxg5 {[%emt 0:00:00]} 41. Rxe5+ {[%emt 0:01:54]} Kf4 {[%emt 0:02:54]} 42. Rc5 {[%emt 0:05:03]} h5 {[%emt 0:02:33]} 43. Rc8 {[%emt 0:05:36]} a5 {[%emt 0:07:36]} 44. Rf8+ {[%emt 0:00:51]} Ke5 {[%emt 0:00:13]} 45. Rf7 {[%emt 0:02:01]} Re8 {[%emt 0:00:14]} 46. Rb7 {[%emt 0:00:22]} a4 {[%emt 0:00:57]} 47. Rxb5+ {[%emt 0:00:16]} Kf4 {[%emt 0:00:47]} 48. Bc4 {[%emt 0:01:30]} h4 {[%emt 0:04:48]} 49. Rb7 {[%emt 0:03:15]} h3 {[%emt 0:04:07]} 50. Rf7+ {[%emt 0:01:31]} Ke5 {[%emt 0:00:16]} 51. Kg3 {[%emt 0:00:39]} Kd6 {[%emt 0:05:34]} 52. Ra7 {[%emt 0:01:01]} d3 {[%emt 0:01:45]} 53. Bxd3 {[%emt 0:03:12]} Rh8 {[%emt 0:00:35]} 54. Ra6+ {[%emt 0:01:50]} Ke7 {[%emt 0:00:54]} 55. Kh2 {[%emt 0:00:15]} Rc8 {[%emt 0:01:44]} 56. Rxa4 {[%emt 0:02:45]} Kxe6 {[%emt 0:00:08]} 57. Kxh3 {[%emt 0:00:34]} Rc3 {[%emt 0:00:12]} 58. Bc4+ {[%emt 0:01:04]} Ke5 {[%emt 0:00:14]} 59. Kg3 {[%emt 0:00:17]} Rc1 {[%emt 0:01:08]} 60. Bf7 {[%emt 0:00:52]} g5 {[%emt 0:01:05]} 61. Ra5+ {[%emt 0:00:18]} Kf6 {[%emt 0:00:22]} 62. Rf5+ {[%emt 0:00:08]} Kg7 {[%emt 0:00:15]} 63. Bd5 {[%emt 0:00:30]} Kg6 {[%emt 0:00:06]} 64. Bf7+ {[%emt 0:00:58]} Kg7 {[%emt 0:00:20]} 65. Bh5 {[%emt 0:01:04]} Kh6 {[%emt 0:00:32]} 66. Bg4 {[%emt 0:00:07]} Kg6 {[%emt 0:00:14]} 67. Ra5 {[%emt 0:00:46]} Rc6 {[%emt 0:00:25]} 68. Bf5+ {[%emt 0:00:38]} Kf6 {[%emt 0:00:25]} 69. Kg4 {[%emt 0:00:14]} Rb6 {[%emt 0:01:43]} 70. e5+ {[%emt 0:00:11]} 1-0

[Event "IND-ch Women 2019"]
[Site "Karaikkudi"]
[Date "2019.07.25"]
[Round "9.4"]
[White "Varshini, V."]
[Black "Soumya, Swaminathan"]
[Result "1-0"]
[ECO "B08"]
[WhiteElo "2087"]
[BlackElo "2402"]
[Annotator "NA"]
[PlyCount "91"]
[EventDate "2019.07.19"]
[EventType "swiss"]
[EventCountry "IND"]
[SourceTitle "playchess.com"]
[Source "ChessBase"]
[SourceQuality "1"]
[TimeControl "40/5400+30:1800+30"]

1. e4 {[%emt 0:00:00]} g6 {[%emt 0:00:00]} 2. d4 {[%emt 0:00:00]} Bg7 {[%emt 0:00:00]} 3. Nf3 {[%emt 0:00:00]} d6 {[%emt 0:00:00]} 4. Nc3 {[%emt 0:00:30]} a6 {[%emt 0:00:59]} 5. a4 {[%emt 0:00:25]} Nf6 {[%emt 0:00:10]} 6. Be2 {[%emt 0:00:50]} O-O {[%emt 0:00:40]} 7. O-O {[%emt 0:00:28]} Nc6 {[%emt 0:00:45]} 8. h3 {[%emt 0:01:35]} e5 {[%emt 0:01:43]} 9. Be3 {[%emt 0:03:50]} exd4 {[%emt 0:08:13]} 10. Nxd4 {[%emt 0:00:29]} Bd7 {[%emt 0:00:16] B08: Pirc Defence: Classical System} (10... Re8 11. Nxc6 bxc6 12. Bd3 c5 13. Rb1 Bb7 14. Bg5 h6 15. Bxf6 Qxf6 16. Bc4 c6 17. Qd3 a5 18. Rbd1 {1-0 (57) Malakhov,V (2702)-Nepomniachtchi,I (2728) Sochi 2015}) 11. Nb3 $146 {[%emt 0:22:24]} ({Predecessor:} 11. Nxc6 Bxc6 12. Bd4 Re8 13. f3 Nh5 14. Bxg7 Kxg7 15. Qd4+ Kg8 16. Bc4 Nf4 17. Kh2 Qg5 18. g3 {½-½ (52) Visakh,N (2431)-Chigaev,M (2549) Pardubice 2016}) 11... Re8 {[%emt 0:02:34]} 12. Bd3 {[%emt 0:04:58]} Nb4 {[%emt 0:06:33]} 13. Qd2 {[%emt 0:05:00]} Nxd3 {[%emt 0:14:44]} 14. cxd3 {[%emt 0:01:11]} b6 {[%emt 0:02:00]} 15. Bg5 {[%emt 0:05:11]} Bc6 {[%emt 0:00:04]} 16. Rfe1 {[%emt 0:10:25]} Qd7 {[%emt 0:04:13]} 17. Bxf6 {[%emt 0:03:10]} Bxf6 {[%emt 0:00:04]} 18. d4 {[%emt 0:00:07]} d5 {[%emt 0:10:57]} 19. e5 {[%emt 0:04:27]} Bg7 {[%emt 0:00:32]} 20. Nc1 $11 {[%emt 0:02:35]} f6 {[%emt 0:03:54]} 21. f4 {[%emt 0:02:20]} a5 {[%emt 0:08:37]} 22. Nd3 {[%emt 0:01:39]} Bb7 {[%emt 0:00:07]} 23. Rad1 {[%emt 0:13:23]} Rad8 {[%emt 0:04:37]} 24. Re2 {[%emt 0:05:24]} Ba6 {[%emt 0:01:55]} 25. Rde1 {[%emt 0:02:49]} c5 {[%emt 0:07:04]} 26. exf6 {[%emt 0:04:50]} Rxe2 {[%emt 0:02:45]} 27. Rxe2 {[%emt 0:01:05]} Bxf6 {[%emt 0:00:07]} 28. Ne5 {[%emt 0:01:17]} Qc8 {[%emt 0:02:49]} 29. Nb5 {[%emt 0:01:06]} cxd4 {[%emt 0:03:13]} 30. Ng4 {[%emt 0:01:33]} Bg7 {[%emt 0:00:17]} 31. Re7 {[%emt 0:00:47]} Qc5 {[%emt 0:04:35]} 32. Qe1 {[%emt 0:01:30]} d3+ {[%emt 0:02:14]} 33. Kh2 {[%emt 0:00:16]} d4 {[%emt 0:06:58]} 34. Qe6+ {[%emt 0:00:04]} Kh8 {[%emt 0:00:08]} 35. Nh6 {[%emt 0:01:06]} Qxe7 {[%emt 0:01:45]} 36. Qxe7 {[%emt 0:00:06]} Rf8 {[%emt 0:00:04]} 37. Nd6 {[%emt 0:00:57]} Bxh6 {[%emt 0:01:05]} 38. Nf7+ {[%emt 0:00:17]} Rxf7 {[%emt 0:00:10]} 39. Qxf7 {[%emt 0:00:05]} d2 {[%emt 0:00:59]} 40. Qe8+ {[%emt 0:00:00]} Kg7 {[%emt 0:00:00]} 41. Qd7+ {[%emt 0:05:17]} Kg8 {[%emt 0:03:20]} 42. Qd5+ {[%emt 0:01:17]} Kf8 {[%emt 0:00:44]} 43. Qxd4 {[%emt 0:00:31]} d1=Q {[%emt 0:00:46]} 44. Qxd1 {[%emt 0:00:05]} Bxf4+ {[%emt 0:00:07]} 45. g3 {[%emt 0:01:11]} Bc7 {[%emt 0:00:22]} 46. Qd7 {[%emt 0:00:21]} 1-0

[Event "IND-ch Women 2019"]
[Site "Karaikkudi"]
[Date "2019.07.25"]
[Round "9.5"]
[White "Gomes, Mary Ann"]
[Black "Swati Ghate"]
[Result "1-0"]
[ECO "A30"]
[WhiteElo "2303"]
[BlackElo "2192"]
[Annotator "NA"]
[PlyCount "83"]
[EventDate "2019.07.19"]
[EventType "swiss"]
[EventCountry "IND"]
[SourceTitle "playchess.com"]
[Source "ChessBase"]
[SourceQuality "1"]
[TimeControl "40/5400+30:1800+30"]

1. Nf3 {[%emt 0:00:00]} Nf6 {[%emt 0:01:15]} 2. c4 {[%emt 0:00:00]} c5 {[%emt 0:00:16]} 3. Nc3 {[%emt 0:00:17]} g6 {[%emt 0:05:04]} 4. b3 {[%emt 0:00:43]} Bg7 {[%emt 0:00:18]} 5. Bb2 {[%emt 0:00:05]} b6 {[%emt 0:03:23]} 6. g3 {[%emt 0:00:08]} Bb7 {[%emt 0:00:07]} 7. Bg2 {[%emt 0:00:07]} O-O {[%emt 0:01:38]} 8. O-O {[%emt 0:00:05]} d6 {[%emt 0:02:06]} 9. e3 {[%emt 0:01:07]} Nbd7 {[%emt 0:04:17]} 10. d4 {[%emt 0:00:56]} a6 $14 {[%emt 0:01:29]} 11. Re1 {[%emt 0:00:28]} Qc7 {[%emt 0:11:36]} 12. e4 {[%emt 0:00:36]} cxd4 {[%emt 0:00:22]} 13. Nxd4 {[%emt 0:00:06]} e6 {[%emt 0:00:36]} 14. Rc1 {[%emt 0:01:11]} Rfd8 {[%emt 0:03:02]} 15. Ba3 {[%emt 0:11:01]} Ne8 {[%emt 0:04:45]} 16. Re2 {[%emt 0:03:36]} Rac8 {[%emt 0:02:17]} 17. Rd2 {[%emt 0:01:28]} Qb8 {[%emt 0:01:03]} 18. Nde2 {[%emt 0:08:36]} Ndf6 {[%emt 0:10:21]} 19. Rcc2 {[%emt 0:04:43]} b5 {[%emt 0:27:39]} 20. cxb5 {[%emt 0:01:21]} axb5 {[%emt 0:18:26]} 21. Bb4 {[%emt 0:12:04]} Qa8 {[%emt 0:00:00]} 22. f3 {[%emt 0:00:05]} d5 {[%emt 0:00:00]} 23. e5 {[%emt 0:00:23]} Nd7 {[%emt 0:00:00]} 24. f4 {[%emt 0:00:09]} Nc7 {[%emt 0:00:00]} 25. Nd4 {[%emt 0:00:20]} Na6 {[%emt 0:00:00]} 26. Ba5 {[%emt 0:12:03]} b4 {[%emt 0:00:00]} 27. Ncb5 {[%emt 0:00:06]} Rxc2 {[%emt 0:00:00]} 28. Nxc2 {[%emt 0:04:09]} Rb8 {[%emt 0:00:00]} 29. Nd6 {[%emt 0:05:24]} Bc6 {[%emt 0:00:00]} 30. Nd4 {[%emt 0:00:13]} Ndc5 {[%emt 0:00:00]} 31. Qc1 {[%emt 0:02:08]} Bd7 {[%emt 0:00:00]} 32. Bc7 {[%emt 0:00:54]} Nxc7 {[%emt 0:00:40]} 33. Qxc5 {[%emt 0:00:06]} Na6 {[%emt 0:00:17]} 34. Qa5 {[%emt 0:00:21]} Qa7 {[%emt 0:02:31]} 35. Bf1 {[%emt 0:00:15]} Rb6 {[%emt 0:00:06]} 36. Kg2 {[%emt 0:02:39]} h5 {[%emt 0:00:34]} 37. Bb5 {[%emt 0:05:40]} Bxb5 {[%emt 0:01:34]} 38. N4xb5 {[%emt 0:00:14]} Rxb5 {[%emt 0:01:18]} 39. Qxb5 {[%emt 0:01:01]} h4 {[%emt 0:00:53]} 40. Rc2 {[%emt 0:00:00]} Bf8 {[%emt 0:00:00]} 41. Rc8 {[%emt 0:02:09]} Nc7 {[%emt 0:02:51]} 42. Qd7 {[%emt 0:00:39]} 1-0